[Event "Late-Titled-Tuesday-Blitz-April-16-2024"]
[Site "Chess.com"]
[Date "2024.04.16"]
[Round "5"]
[White "ccccvhhhj"]
[Black "TangerineandLemon25"]
[Result "0-1"]
[WhiteElo "2430"]
[BlackElo "2606"]
[TimeControl "180+1"]
[EndTime "14:54:13 PDT"]
[Termination "TangerineandLemon25 won on time"]

1. e4 {[%clk 0:03:00.9]} 1... c5 {[%clk 0:02:59.1]} 2. Nf3 {[%clk 0:03:00.9]}
2... d6 {[%clk 0:02:55.9]} 3. d4 {[%clk 0:03:01]} 3... cxd4 {[%clk 0:02:56.8]}
4. Nxd4 {[%clk 0:03:01.8]} 4... Nf6 {[%clk 0:02:49]} 5. Nc3 {[%clk 0:03:02.2]}
5... a6 {[%clk 0:02:49.5]} 6. Rg1 {[%clk 0:03:02.7]} 6... e5 {[%clk 0:02:47.6]}
7. Nb3 {[%clk 0:03:02.7]} 7... h5 {[%clk 0:02:48.1]} 8. h3 {[%clk 0:03:02.9]}
8... Be6 {[%clk 0:02:47.3]} 9. Be3 {[%clk 0:03:03]} 9... Be7 {[%clk 0:02:44.4]}
10. g4 {[%clk 0:03:02.6]} 10... hxg4 {[%clk 0:02:45]} 11. hxg4 {[%clk
0:03:03.5]} 11... Nc6 {[%clk 0:02:43.6]} 12. g5 {[%clk 0:03:03.6]} 12... Nd7
{[%clk 0:02:42.9]} 13. Qd2 {[%clk 0:03:03.2]} 13... Rc8 {[%clk 0:02:42.9]} 14.
O-O-O {[%clk 0:03:03.2]} 14... g6 {[%clk 0:02:37.5]} 15. Be2 {[%clk 0:02:54.9]}
15... Nb4 {[%clk 0:02:32]} 16. Kb1 {[%clk 0:02:53.9]} 16... Kf8 {[%clk
0:02:13.3]} 17. Rh1 {[%clk 0:02:44.5]} 17... Rxh1 {[%clk 0:02:10]} 18. Rxh1
{[%clk 0:02:45.4]} 18... Kg7 {[%clk 0:02:10.1]} 19. f4 {[%clk 0:02:32.9]} 19...
exf4 {[%clk 0:01:41.2]} 20. Bd4+ {[%clk 0:02:32.9]} 20... Ne5 {[%clk 0:01:39.1]}
21. Qxf4 {[%clk 0:02:32.1]} 21... Bxg5 {[%clk 0:01:34.2]} 22. Qh2 {[%clk
0:02:16.8]} 22... Bf6 {[%clk 0:01:19.9]} 23. Qh6+ {[%clk 0:01:39.5]} 23... Kg8
{[%clk 0:01:19.6]} 24. Be3 {[%clk 0:01:20.5]} 24... Bg7 {[%clk 0:00:21.5]} 25.
Qh7+ {[%clk 0:01:18.7]} 25... Kf8 {[%clk 0:00:22.1]} 26. Bh6 {[%clk 0:01:19.6]}
26... Bxh6 {[%clk 0:00:22.7]} 27. Qxh6+ {[%clk 0:01:19.8]} 27... Ke7 {[%clk
0:00:23.3]} 28. Nd4 {[%clk 0:01:11.1]} 28... Kd7 {[%clk 0:00:19.6]} 29. Qg7
{[%clk 0:01:09.3]} 29... Qe7 {[%clk 0:00:16]} 30. Bf1 {[%clk 0:00:50.6]} 30...
Kc7 {[%clk 0:00:13.8]} 31. Bh3 {[%clk 0:00:48.4]} 31... Bxh3 {[%clk 0:00:13.2]}
32. a3 {[%clk 0:00:47.8]} 32... Kb8 {[%clk 0:00:10.6]} 33. Rxh3 {[%clk
0:00:41.5]} 33... Nbc6 {[%clk 0:00:10.2]} 34. Nb3 {[%clk 0:00:32.9]} 34... Qe6
{[%clk 0:00:09.8]} 35. Rh8 {[%clk 0:00:27.4]} 35... Rxh8 {[%clk 0:00:08.7]} 36.
Qxh8+ {[%clk 0:00:28.3]} 36... Qc8 {[%clk 0:00:09.1]} 37. Qf6 {[%clk 0:00:25.4]}
37... Qd8 {[%clk 0:00:09.4]} 38. Qf2 {[%clk 0:00:19.9]} 38... Ne7 {[%clk
0:00:09.9]} 39. Nd4 {[%clk 0:00:19.6]} 39... Qd7 {[%clk 0:00:10.1]} 40. Qf6
{[%clk 0:00:18.4]} 40... N7c6 {[%clk 0:00:09]} 41. Nb3 {[%clk 0:00:18]} 41...
Ne7 {[%clk 0:00:08.8]} 42. Nd4 {[%clk 0:00:17.9]} 42... N5c6 {[%clk 0:00:08.2]}
43. Nxc6+ {[%clk 0:00:14.7]} 43... Nxc6 {[%clk 0:00:08]} 44. Nd5 {[%clk
0:00:14.9]} 44... Qe6 {[%clk 0:00:08.9]} 45. Qh8+ {[%clk 0:00:14.4]} 45... Ka7
{[%clk 0:00:09.5]} 46. Qh4 {[%clk 0:00:05.9]} 46... f5 {[%clk 0:00:08.6]} 47.
Qf2+ {[%clk 0:00:06.4]} 47... Kb8 {[%clk 0:00:09.2]} 48. Qb6 {[%clk 0:00:05.9]}
48... Qxe4 {[%clk 0:00:06.8]} 49. Qc7+ {[%clk 0:00:05.9]} 49... Ka8 {[%clk
0:00:06.9]} 50. Nb6+ {[%clk 0:00:06.2]} 50... Ka7 {[%clk 0:00:07.2]} 51. Nd7
{[%clk 0:00:06.4]} 51... Ka8 {[%clk 0:00:07.9]} 52. Qc8+ {[%clk 0:00:04.9]}
52... Ka7 {[%clk 0:00:08.1]} 53. Qc7 {[%clk 0:00:03.6]} 53... Qe1+ {[%clk
0:00:08.6]} 54. Ka2 {[%clk 0:00:03]} 54... Qe6+ {[%clk 0:00:09.3]} 55. Kb1
{[%clk 0:00:03.8]} 55... Qe3 {[%clk 0:00:10.2]} 56. Ka2 {[%clk 0:00:03.6]} 56...
Qd4 {[%clk 0:00:10.2]} 57. Qc8 {[%clk 0:00:03.6]} 57... f4 {[%clk 0:00:09.9]}
58. Kb1 {[%clk 0:00:04.1]} 58... f3 {[%clk 0:00:10.3]} 59. Qf8 {[%clk
0:00:03.5]} 59... f2 {[%clk 0:00:10.7]} 60. Ka2 {[%clk 0:00:03.8]} 60... Qc4+
{[%clk 0:00:10.3]} 61. Kb1 {[%clk 0:00:04.4]} 61... f1=Q+ {[%clk 0:00:09.6]} 62.
Qxf1 {[%clk 0:00:05.2]} 62... Qxf1+ {[%clk 0:00:10.1]} 0-1

[Event "Late-Titled-Tuesday-Blitz-April-16-2024"]
[Site "Chess.com"]
[Date "2024.04.16"]
[Round "5"]
[White "Navyblue1"]
[Black "ChadBiryani"]
[Result "0-1"]
[WhiteElo "2250"]
[BlackElo "2464"]
[TimeControl "180+1"]
[EndTime "14:54:14 PDT"]
[Termination "ChadBiryani won by resignation"]

1. d4 {[%clk 0:03:00.9]} 1... d6 {[%clk 0:02:57.5]} 2. c4 {[%clk 0:02:50.6]}
2... Nf6 {[%clk 0:02:57.6]} 3. Nc3 {[%clk 0:02:46.9]} 3... g6 {[%clk 0:02:57.4]}
4. e4 {[%clk 0:02:45.4]} 4... Bg7 {[%clk 0:02:57.4]} 5. Bg5 {[%clk 0:02:44]}
5... O-O {[%clk 0:02:57]} 6. Be2 {[%clk 0:02:43.5]} 6... Nbd7 {[%clk 0:02:55.8]}
7. Qd2 {[%clk 0:02:41.3]} 7... e5 {[%clk 0:02:55.5]} 8. d5 {[%clk 0:02:39.9]}
8... a5 {[%clk 0:02:53.8]} 9. h4 {[%clk 0:02:30.6]} 9... Nc5 {[%clk 0:02:46.3]}
10. f3 {[%clk 0:02:00.3]} 10... Qd7 {[%clk 0:02:38.1]} 11. g4 {[%clk 0:01:50.8]}
11... c6 {[%clk 0:02:32.7]} 12. Nh3 {[%clk 0:01:46.3]} 12... cxd5 {[%clk
0:02:30.2]} 13. cxd5 {[%clk 0:01:46.4]} 13... Ne8 {[%clk 0:02:29.7]} 14. Bh6
{[%clk 0:01:40]} 14... f5 {[%clk 0:02:16.5]} 15. Bxg7 {[%clk 0:01:36.6]} 15...
Nxg7 {[%clk 0:02:13.4]} 16. gxf5 {[%clk 0:01:33]} 16... gxf5 {[%clk 0:02:07.2]}
17. Qg5 {[%clk 0:01:31.9]} 17... Qd8 {[%clk 0:01:54]} 18. Qxd8 {[%clk
0:01:09.7]} 18... Rxd8 {[%clk 0:01:52.1]} 19. Rg1 {[%clk 0:01:10.3]} 19... f4
{[%clk 0:01:44.3]} 20. Nf2 {[%clk 0:00:48.1]} 20... Kf7 {[%clk 0:01:18.8]} 21.
Rg5 {[%clk 0:00:20.7]} 21... h6 {[%clk 0:01:17.4]} 22. Rg1 {[%clk 0:00:20.3]}
22... Nh5 {[%clk 0:01:17.6]} 23. Kd2 {[%clk 0:00:19.6]} 23... Ng3 {[%clk
0:01:17.6]} 24. Bb5 {[%clk 0:00:16.5]} 24... Bd7 {[%clk 0:01:03.1]} 25. Bxd7
{[%clk 0:00:14.7]} 25... Rxd7 {[%clk 0:01:01.1]} 26. Nh1 {[%clk 0:00:15.4]}
26... Rg8 {[%clk 0:00:59.4]} 27. Nxg3 {[%clk 0:00:15.3]} 27... fxg3 {[%clk
0:00:57.7]} 28. Rg2 {[%clk 0:00:15.9]} 28... Kf6 {[%clk 0:00:55.6]} 29. Rag1
{[%clk 0:00:15.6]} 29... Rdg7 {[%clk 0:00:56.2]} 30. Ne2 {[%clk 0:00:15.1]}
30... b5 {[%clk 0:00:44.1]} 31. Rxg3 {[%clk 0:00:15.3]} 31... Rxg3 {[%clk
0:00:42.6]} 32. Rxg3 {[%clk 0:00:16.2]} 32... Rb8 {[%clk 0:00:42.1]} 33. Rg1
{[%clk 0:00:15.4]} 33... Na4 {[%clk 0:00:42]} 34. b3 {[%clk 0:00:14.4]} 34...
Nc5 {[%clk 0:00:42.7]} 35. Rc1 {[%clk 0:00:14.5]} 35... Rg8 {[%clk 0:00:41.8]}
36. Ke3 {[%clk 0:00:13.7]} 36... Rg2 {[%clk 0:00:41.2]} 37. Rg1 {[%clk
0:00:12.5]} 37... Rh2 {[%clk 0:00:41.4]} 38. Rg4 {[%clk 0:00:12.6]} 38... h5
{[%clk 0:00:41.1]} 39. Rg8 {[%clk 0:00:12.6]} 39... Rxh4 {[%clk 0:00:41.1]} 40.
Rd8 {[%clk 0:00:13.1]} 40... Ke7 {[%clk 0:00:40.7]} 41. Rh8 {[%clk 0:00:13]}
41... Rh2 {[%clk 0:00:40.5]} 42. Rh7+ {[%clk 0:00:13.3]} 42... Kf6 {[%clk
0:00:40.7]} 43. Rh8 {[%clk 0:00:10.4]} 43... h4 {[%clk 0:00:37.5]} 44. Rh6+
{[%clk 0:00:10.4]} 44... Ke7 {[%clk 0:00:37.5]} 45. Rh7+ {[%clk 0:00:10.7]}
45... Kd8 {[%clk 0:00:37.7]} 46. Rh6 {[%clk 0:00:10.6]} 46... Kc7 {[%clk
0:00:38]} 47. Rh7+ {[%clk 0:00:10.7]} 47... Kb6 {[%clk 0:00:37]} 48. Rh6 {[%clk
0:00:11]} 48... Kc7 {[%clk 0:00:37.6]} 49. Rh7+ {[%clk 0:00:11.4]} 49... Nd7
{[%clk 0:00:38.4]} 50. f4 {[%clk 0:00:10.9]} 50... exf4+ {[%clk 0:00:38.2]} 51.
Nxf4 {[%clk 0:00:10.8]} 51... Rxa2 {[%clk 0:00:38.4]} 52. Ne6+ {[%clk
0:00:10.8]} 52... Kc8 {[%clk 0:00:37.4]} 53. Rh8+ {[%clk 0:00:11]} 53... Kb7
{[%clk 0:00:37.9]} 54. Rxh4 {[%clk 0:00:10.5]} 54... Ne5 {[%clk 0:00:34.7]} 55.
Rh7+ {[%clk 0:00:10.8]} 55... Kb6 {[%clk 0:00:35.3]} 56. Nd8 {[%clk 0:00:10.7]}
56... Ra3 {[%clk 0:00:32.1]} 57. Rb7+ {[%clk 0:00:10]} 57... Kc5 {[%clk
0:00:32]} 58. Rc7+ {[%clk 0:00:09.5]} 58... Kb4 {[%clk 0:00:32]} 59. Nc6+ {[%clk
0:00:09.5]} 59... Kxb3 {[%clk 0:00:31.2]} 60. Nxe5 {[%clk 0:00:08.7]} 60... dxe5
{[%clk 0:00:29.7]} 61. d6 {[%clk 0:00:09.2]} 61... Ra1 {[%clk 0:00:27.4]} 62.
Rb7 {[%clk 0:00:07.8]} 62... Kc4 {[%clk 0:00:22.9]} 63. Rc7+ {[%clk 0:00:08.1]}
63... Kb4 {[%clk 0:00:22.9]} 64. d7 {[%clk 0:00:08.2]} 64... Rd1 {[%clk
0:00:23.5]} 65. Ke2 {[%clk 0:00:08.1]} 65... Rd4 {[%clk 0:00:23.2]} 66. Ke3
{[%clk 0:00:08.9]} 66... a4 {[%clk 0:00:23.3]} 67. Ra7 {[%clk 0:00:08.4]} 67...
a3 {[%clk 0:00:22.5]} 68. Kf3 {[%clk 0:00:07]} 68... Kb3 {[%clk 0:00:22.2]} 69.
Ke3 {[%clk 0:00:07.1]} 69... b4 {[%clk 0:00:22.5]} 70. Ra5 {[%clk 0:00:06.3]}
70... Rxd7 {[%clk 0:00:21.7]} 71. Rxe5 {[%clk 0:00:06.9]} 71... Ra7 {[%clk
0:00:20.3]} 72. Rd5 {[%clk 0:00:07.1]} 72... a2 {[%clk 0:00:20.6]} 73. Rd2
{[%clk 0:00:07.5]} 73... a1=Q {[%clk 0:00:20.5]} 0-1

[Event "Late-Titled-Tuesday-Blitz-April-16-2024"]
[Site "Chess.com"]
[Date "2024.04.16"]
[Round "5"]
[White "Vladimir_2020"]
[Black "PotapovaM"]
[Result "1-0"]
[WhiteElo "2762"]
[BlackElo "2538"]
[TimeControl "180+1"]
[EndTime "14:54:21 PDT"]
[Termination "Vladimir_2020 won by resignation"]

1. e4 {[%clk 0:03:00.9]} 1... c5 {[%clk 0:02:57.4]} 2. Nf3 {[%clk 0:03:00.3]}
2... d6 {[%clk 0:02:56]} 3. d4 {[%clk 0:02:59.5]} 3... cxd4 {[%clk 0:02:56.9]}
4. Nxd4 {[%clk 0:02:59.7]} 4... Nf6 {[%clk 0:02:57.2]} 5. Nc3 {[%clk 0:02:59.8]}
5... a6 {[%clk 0:02:57.3]} 6. g3 {[%clk 0:02:59.9]} 6... e5 {[%clk 0:02:53.2]}
7. Nde2 {[%clk 0:02:59.4]} 7... b5 {[%clk 0:02:46.1]} 8. Bg2 {[%clk 0:02:57]}
8... Be7 {[%clk 0:02:23]} 9. O-O {[%clk 0:02:53]} 9... O-O {[%clk 0:02:21.2]}
10. a4 {[%clk 0:02:47.7]} 10... b4 {[%clk 0:02:18.9]} 11. Nd5 {[%clk 0:02:47.4]}
11... Nxd5 {[%clk 0:02:19.4]} 12. exd5 {[%clk 0:02:47.4]} 12... Ra7 {[%clk
0:02:20.1]} 13. a5 {[%clk 0:02:45]} 13... Nd7 {[%clk 0:02:15.9]} 14. Bd2 {[%clk
0:02:40]} 14... Rb7 {[%clk 0:02:13.4]} 15. b3 {[%clk 0:02:31.4]} 15... Nc5
{[%clk 0:02:11.3]} 16. Qe1 {[%clk 0:02:28.8]} 16... Bg4 {[%clk 0:02:00.7]} 17.
Nc1 {[%clk 0:02:20]} 17... e4 {[%clk 0:01:29]} 18. Bxb4 {[%clk 0:01:55.9]} 18...
Bf6 {[%clk 0:01:29.2]} 19. Bc3 {[%clk 0:01:55.4]} 19... Re8 {[%clk 0:01:17.8]}
20. Na2 {[%clk 0:01:53.1]} 20... Bg5 {[%clk 0:01:10.7]} 21. Bd4 {[%clk
0:01:36.5]} 21... Qd7 {[%clk 0:00:57.8]} 22. Nb4 {[%clk 0:01:27.6]} 22... Bf3
{[%clk 0:00:40.5]} 23. Nc6 {[%clk 0:01:19.3]} 23... h5 {[%clk 0:00:35.2]} 24. b4
{[%clk 0:01:13.7]} 24... Ne6 {[%clk 0:00:25.4]} 25. Be3 {[%clk 0:01:04]} 25...
Bf6 {[%clk 0:00:21.2]} 26. Rd1 {[%clk 0:00:59.4]} 26... Ng5 {[%clk 0:00:21.7]}
27. Bxg5 {[%clk 0:00:56.2]} 27... Bxg5 {[%clk 0:00:20.6]} 28. Rd4 {[%clk
0:00:53.4]} 28... Bf6 {[%clk 0:00:18.3]} 29. Rc4 {[%clk 0:00:51.9]} 29... Rb5
{[%clk 0:00:16.9]} 30. Qd2 {[%clk 0:00:48.7]} 30... Qf5 {[%clk 0:00:16.5]} 31.
Nd4 {[%clk 0:00:42.7]} 31... Qxd5 {[%clk 0:00:16.7]} 32. Nxf3 {[%clk 0:00:35.9]}
32... Qxc4 {[%clk 0:00:14.8]} 33. Ne1 {[%clk 0:00:34.5]} 33... Qxb4 {[%clk
0:00:14.8]} 34. Qe2 {[%clk 0:00:33.5]} 34... d5 {[%clk 0:00:13.7]} 35. Qxh5
{[%clk 0:00:32.8]} 35... d4 {[%clk 0:00:11.5]} 36. Qe2 {[%clk 0:00:32.5]} 36...
e3 {[%clk 0:00:04.8]} 37. Nd3 {[%clk 0:00:31.7]} 37... exf2+ {[%clk 0:00:04.4]}
38. Qxf2 {[%clk 0:00:31.9]} 38... Qd6 {[%clk 0:00:03.9]} 39. Qd2 {[%clk
0:00:27.5]} 39... Rbb8 {[%clk 0:00:04.1]} 40. Rf5 {[%clk 0:00:24.9]} 40... Re3
{[%clk 0:00:03.3]} 41. Rf1 {[%clk 0:00:22.3]} 41... Rbe8 {[%clk 0:00:03.8]} 42.
Nf4 {[%clk 0:00:20.4]} 42... Qd7 {[%clk 0:00:03.6]} 43. Nd5 {[%clk 0:00:19.9]}
43... Be5 {[%clk 0:00:03.3]} 44. Nxe3 {[%clk 0:00:19.6]} 44... Qc7 {[%clk
0:00:01.9]} 45. Nd5 {[%clk 0:00:17.5]} 45... Qc5 {[%clk 0:00:02.4]} 46. Qd3
{[%clk 0:00:17.2]} 46... Bd6 {[%clk 0:00:02.4]} 47. Kh1 {[%clk 0:00:17.1]} 47...
Bf8 {[%clk 0:00:03]} 48. Qf5 {[%clk 0:00:16.5]} 48... f6 {[%clk 0:00:02.2]} 49.
Qh5 {[%clk 0:00:16.2]} 49... Re5 {[%clk 0:00:02.6]} 50. Qf3 {[%clk 0:00:13.9]}
50... Qd6 {[%clk 0:00:03.1]} 51. Nf4 {[%clk 0:00:13.3]} 51... Rc5 {[%clk
0:00:02.4]} 52. Nd3 {[%clk 0:00:13]} 52... Rxc2 {[%clk 0:00:02.5]} 53. Qd5+
{[%clk 0:00:13.1]} 53... Qxd5 {[%clk 0:00:03]} 54. Bxd5+ {[%clk 0:00:13.3]}
54... Kh8 {[%clk 0:00:03.8]} 55. Bb7 {[%clk 0:00:13.1]} 55... Rd2 {[%clk
0:00:03.4]} 56. Bxa6 {[%clk 0:00:13.2]} 56... Ra2 {[%clk 0:00:03]} 57. Bc4
{[%clk 0:00:13.2]} 57... Rxa5 {[%clk 0:00:03.4]} 58. Re1 {[%clk 0:00:13.6]}
58... Kh7 {[%clk 0:00:02.5]} 59. Re8 {[%clk 0:00:12.7]} 59... Bd6 {[%clk
0:00:02.9]} 60. Kg2 {[%clk 0:00:11.3]} 60... Ra3 {[%clk 0:00:02.3]} 61. Bd5
{[%clk 0:00:10.2]} 61... Rxd3 {[%clk 0:00:02.3]} 62. Be4+ {[%clk 0:00:10.4]} 1-0

[Event "Late-Titled-Tuesday-Blitz-April-16-2024"]
[Site "Chess.com"]
[Date "2024.04.16"]
[Round "5"]
[White "ploxoi"]
[Black "CURRUTACO59"]
[Result "1-0"]
[WhiteElo "2407"]
[BlackElo "2158"]
[TimeControl "180+1"]
[EndTime "14:54:23 PDT"]
[Termination "ploxoi won on time"]

1. d4 {[%clk 0:02:59.7]} 1... Nf6 {[%clk 0:02:58.9]} 2. c4 {[%clk 0:02:58.7]}
2... e6 {[%clk 0:02:58.1]} 3. Nf3 {[%clk 0:02:58.5]} 3... Bb4+ {[%clk
0:02:57.1]} 4. Bd2 {[%clk 0:02:57.9]} 4... a5 {[%clk 0:02:55.5]} 5. g3 {[%clk
0:02:57.6]} 5... d6 {[%clk 0:02:53.1]} 6. Bg2 {[%clk 0:02:56.5]} 6... Nbd7
{[%clk 0:02:53.6]} 7. O-O {[%clk 0:02:56.2]} 7... e5 {[%clk 0:02:45.8]} 8. a3
{[%clk 0:02:42.6]} 8... Bxd2 {[%clk 0:02:44.9]} 9. Nbxd2 {[%clk 0:02:41.3]} 9...
e4 {[%clk 0:02:30]} 10. Ng5 {[%clk 0:02:40.7]} 10... e3 {[%clk 0:02:29.7]} 11.
fxe3 {[%clk 0:02:41.6]} 11... h6 {[%clk 0:02:14]} 12. Nge4 {[%clk 0:02:40.8]}
12... Ng4 {[%clk 0:02:10.9]} 13. Rf3 {[%clk 0:02:31.2]} 13... O-O {[%clk
0:01:50.2]} 14. h3 {[%clk 0:02:27.5]} 14... Ngf6 {[%clk 0:01:48.5]} 15. Nxf6+
{[%clk 0:02:26.3]} 15... Nxf6 {[%clk 0:01:48.1]} 16. e4 {[%clk 0:02:23.2]} 16...
c5 {[%clk 0:01:41.1]} 17. e3 {[%clk 0:02:21]} 17... Qb6 {[%clk 0:01:36]} 18. Qb3
{[%clk 0:02:08.5]} 18... Qxb3 {[%clk 0:01:29.6]} 19. Nxb3 {[%clk 0:02:09.4]}
19... Nxe4 {[%clk 0:01:27.5]} 20. Rf4 {[%clk 0:02:08.9]} 20... Nxg3 {[%clk
0:01:16]} 21. Kf2 {[%clk 0:02:04.5]} 21... Nh5 {[%clk 0:01:11.4]} 22. Rh4 {[%clk
0:01:56.4]} 22... Nf6 {[%clk 0:01:06.9]} 23. dxc5 {[%clk 0:01:51]} 23... a4
{[%clk 0:01:01.5]} 24. Nd4 {[%clk 0:01:48.8]} 24... dxc5 {[%clk 0:01:00.8]} 25.
Nb5 {[%clk 0:01:47.3]} 25... Ra6 {[%clk 0:00:54.5]} 26. Rd1 {[%clk 0:01:42.7]}
26... Re6 {[%clk 0:00:39.9]} 27. Na7 {[%clk 0:01:23.9]} 27... g5 {[%clk
0:00:34.9]} 28. Rxh6 {[%clk 0:01:22.3]} 28... Ng4+ {[%clk 0:00:32.6]} 29. hxg4
{[%clk 0:01:21.7]} 29... Rxh6 {[%clk 0:00:32.5]} 30. Nxc8 {[%clk 0:01:22.1]}
30... Rxc8 {[%clk 0:00:32.3]} 31. Bxb7 {[%clk 0:01:22.1]} 31... Rb8 {[%clk
0:00:32.4]} 32. Rd7 {[%clk 0:01:18.8]} 32... Rb6 {[%clk 0:00:28]} 33. Bd5 {[%clk
0:01:19.2]} 33... Rxb2+ {[%clk 0:00:27.1]} 34. Kf3 {[%clk 0:01:19.8]} 34... Rf8
{[%clk 0:00:26]} 35. Ra7 {[%clk 0:01:17.4]} 35... Rb3 {[%clk 0:00:24.9]} 36.
Rxa4 {[%clk 0:01:17.3]} 36... Re8 {[%clk 0:00:24.6]} 37. Be4 {[%clk 0:01:13.5]}
37... Kg7 {[%clk 0:00:21.4]} 38. Ra5 {[%clk 0:01:12.1]} 38... Rc8 {[%clk
0:00:20.5]} 39. Bd5 {[%clk 0:01:06.8]} 39... Rc7 {[%clk 0:00:19.5]} 40. a4
{[%clk 0:01:00.7]} 40... Re7 {[%clk 0:00:18.7]} 41. Be4 {[%clk 0:01:01.3]} 41...
Rc7 {[%clk 0:00:18.7]} 42. Ra6 {[%clk 0:00:58.7]} 42... Ra3 {[%clk 0:00:18.2]}
43. a5 {[%clk 0:00:54.1]} 43... Ra4 {[%clk 0:00:17.3]} 44. Bd5 {[%clk
0:00:53.2]} 44... Re7 {[%clk 0:00:16.7]} 45. Ra8 {[%clk 0:00:50.1]} 45... Ra3
{[%clk 0:00:16]} 46. Be4 {[%clk 0:00:50.7]} 46... Kf6 {[%clk 0:00:13]} 47. a6
{[%clk 0:00:50.7]} 47... Re6 {[%clk 0:00:12]} 48. a7 {[%clk 0:00:25.4]} 48...
Rea6 {[%clk 0:00:11.5]} 49. Rc8 {[%clk 0:00:24.7]} 49... Rxa7 {[%clk 0:00:11]}
50. Rxc5 {[%clk 0:00:25.4]} 50... Re7 {[%clk 0:00:10.5]} 51. Rf5+ {[%clk
0:00:24.6]} 51... Kg7 {[%clk 0:00:10.5]} 52. Rxg5+ {[%clk 0:00:24.7]} 52... Kf8
{[%clk 0:00:10.4]} 53. Kf4 {[%clk 0:00:20.7]} 53... Rc3 {[%clk 0:00:10]} 54. Rc5
{[%clk 0:00:20.8]} 54... Kg7 {[%clk 0:00:07]} 55. Rc6 {[%clk 0:00:17]} 55... Ra3
{[%clk 0:00:06.4]} 56. g5 {[%clk 0:00:11.3]} 56... Rc3 {[%clk 0:00:05.4]} 57.
Rc5 {[%clk 0:00:05]} 57... Kf8 {[%clk 0:00:05.2]} 58. Rc8+ {[%clk 0:00:05]}
58... Kg7 {[%clk 0:00:04.8]} 59. Rc6 {[%clk 0:00:05.7]} 59... Kf8 {[%clk
0:00:04.5]} 60. Rc8+ {[%clk 0:00:05.2]} 60... Kg7 {[%clk 0:00:04.4]} 61. c5
{[%clk 0:00:06]} 61... Rc4 {[%clk 0:00:03]} 62. c6 {[%clk 0:00:06.3]} 62...
Rexe4+ {[%clk 0:00:02.5]} 63. Kg3 {[%clk 0:00:07]} 63... Re7 {[%clk 0:00:02.2]}
64. c7 {[%clk 0:00:06.5]} 1-0

[Event "Late-Titled-Tuesday-Blitz-April-16-2024"]
[Site "Chess.com"]
[Date "2024.04.16"]
[Round "5"]
[White "Doublekk14"]
[Black "2L8IWUN"]
[Result "1/2-1/2"]
[WhiteElo "2386"]
[BlackElo "2085"]
[TimeControl "180+1"]
[EndTime "14:54:25 PDT"]
[Termination "Game drawn - insufficient material"]

1. e4 {[%clk 0:03:00.9]} 1... e5 {[%clk 0:02:59.1]} 2. Nf3 {[%clk 0:02:58.2]}
2... Nc6 {[%clk 0:02:53.7]} 3. Bc4 {[%clk 0:02:57.4]} 3... Bc5 {[%clk
0:02:51.6]} 4. d3 {[%clk 0:02:55.2]} 4... Nf6 {[%clk 0:02:46.3]} 5. c3 {[%clk
0:02:52.4]} 5... a6 {[%clk 0:02:42]} 6. Bb3 {[%clk 0:02:53.3]} 6... O-O {[%clk
0:02:36.1]} 7. O-O {[%clk 0:02:52.3]} 7... Ba7 {[%clk 0:02:26.9]} 8. h3 {[%clk
0:02:50.8]} 8... h6 {[%clk 0:02:24.7]} 9. Be3 {[%clk 0:02:26.6]} 9... d5 {[%clk
0:02:09.7]} 10. Bxa7 {[%clk 0:02:22.7]} 10... Rxa7 {[%clk 0:02:08.7]} 11. exd5
{[%clk 0:02:10.8]} 11... Nxd5 {[%clk 0:02:09.6]} 12. Nbd2 {[%clk 0:02:10.7]}
12... Nf4 {[%clk 0:01:59.1]} 13. Ne4 {[%clk 0:02:05]} 13... Qxd3 {[%clk
0:01:56.1]} 14. Qxd3 {[%clk 0:01:56.9]} 14... Nxd3 {[%clk 0:01:57]} 15. Bd5
{[%clk 0:01:57]} 15... Rd8 {[%clk 0:01:19.5]} 16. Bb3 {[%clk 0:01:45.7]} 16...
Bf5 {[%clk 0:01:12.7]} 17. Ng3 {[%clk 0:01:31.4]} 17... Bh7 {[%clk 0:01:11.3]}
18. Rad1 {[%clk 0:01:20.8]} 18... Raa8 {[%clk 0:00:58.5]} 19. Rd2 {[%clk
0:00:52.4]} 19... Nc5 {[%clk 0:00:46.3]} 20. Rfd1 {[%clk 0:00:32.8]} 20... Nxb3
{[%clk 0:00:43.2]} 21. axb3 {[%clk 0:00:32.2]} 21... f6 {[%clk 0:00:37.3]} 22.
Nf1 {[%clk 0:00:27]} 22... Rxd2 {[%clk 0:00:35.8]} 23. Rxd2 {[%clk 0:00:26.1]}
23... Rd8 {[%clk 0:00:36.7]} 24. Rxd8+ {[%clk 0:00:25.8]} 24... Nxd8 {[%clk
0:00:37.6]} 25. Ne3 {[%clk 0:00:25.5]} 25... a5 {[%clk 0:00:21.6]} 26. Nd2
{[%clk 0:00:24.9]} 26... Ne6 {[%clk 0:00:20.1]} 27. Nd5 {[%clk 0:00:23.6]} 27...
b6 {[%clk 0:00:20.1]} 28. Ne3 {[%clk 0:00:21.9]} 28... Kf7 {[%clk 0:00:20]} 29.
Kf1 {[%clk 0:00:19.3]} 29... Bd3+ {[%clk 0:00:18.1]} 30. Ke1 {[%clk 0:00:17.5]}
30... f5 {[%clk 0:00:18.6]} 31. g3 {[%clk 0:00:16.5]} 31... f4 {[%clk
0:00:18.3]} 32. Nec4 {[%clk 0:00:15.6]} 32... Bxc4 {[%clk 0:00:18]} 33. Nxc4
{[%clk 0:00:15.8]} 33... fxg3 {[%clk 0:00:18]} 34. fxg3 {[%clk 0:00:15.8]} 34...
Kf6 {[%clk 0:00:18.5]} 35. Kf2 {[%clk 0:00:15.2]} 35... Nc5 {[%clk 0:00:18.3]}
36. Nd2 {[%clk 0:00:14.1]} 36... Nd3+ {[%clk 0:00:18]} 37. Ke3 {[%clk
0:00:13.2]} 37... Nxb2 {[%clk 0:00:18.9]} 38. Ne4+ {[%clk 0:00:11.8]} 38... Ke7
{[%clk 0:00:17.4]} 39. Kd2 {[%clk 0:00:10.7]} 39... b5 {[%clk 0:00:17.6]} 40.
Kc2 {[%clk 0:00:10.7]} 40... a4 {[%clk 0:00:15.2]} 41. Kxb2 {[%clk 0:00:10.8]}
41... axb3 {[%clk 0:00:15.6]} 42. Kxb3 {[%clk 0:00:11.1]} 42... c6 {[%clk
0:00:16.5]} 43. Nc5 {[%clk 0:00:10.7]} 43... Kd6 {[%clk 0:00:16.5]} 44. Ne4+
{[%clk 0:00:10.4]} 44... Kd5 {[%clk 0:00:16.6]} 45. Nd2 {[%clk 0:00:09]} 45...
e4 {[%clk 0:00:17.1]} 46. Kc2 {[%clk 0:00:08.9]} 46... e3 {[%clk 0:00:17.7]} 47.
Nf1 {[%clk 0:00:08.8]} 47... Ke4 {[%clk 0:00:18]} 48. Kd1 {[%clk 0:00:08.6]}
48... Kf3 {[%clk 0:00:18.4]} 49. Ke1 {[%clk 0:00:08.5]} 49... Kg2 {[%clk
0:00:18]} 50. Nxe3+ {[%clk 0:00:07.5]} 50... Kxg3 {[%clk 0:00:18.3]} 51. Nf5+
{[%clk 0:00:07.3]} 51... Kxh3 {[%clk 0:00:18.8]} 52. Nxg7 {[%clk 0:00:06.6]}
52... c5 {[%clk 0:00:19.2]} 53. Kd2 {[%clk 0:00:06.6]} 53... b4 {[%clk
0:00:19.9]} 54. c4 {[%clk 0:00:06.8]} 54... Kg4 {[%clk 0:00:19.7]} 55. Ne6
{[%clk 0:00:06.1]} 55... h5 {[%clk 0:00:20.3]} 56. Nxc5 {[%clk 0:00:06.2]} 56...
h4 {[%clk 0:00:21.2]} 57. Nd3 {[%clk 0:00:06.3]} 57... Kf5 {[%clk 0:00:21]} 58.
Nf2 {[%clk 0:00:05.3]} 58... Ke5 {[%clk 0:00:21.1]} 59. Kc2 {[%clk 0:00:05.4]}
59... Kd4 {[%clk 0:00:21.3]} 60. Kb3 {[%clk 0:00:05.9]} 60... Ke3 {[%clk
0:00:20.9]} 61. Nh3 {[%clk 0:00:04.6]} 61... Kf3 {[%clk 0:00:20.3]} 62. Kxb4
{[%clk 0:00:04.1]} 62... Kg3 {[%clk 0:00:21]} 63. Ng5 {[%clk 0:00:03.1]} 63...
Kg4 {[%clk 0:00:21.3]} 64. c5 {[%clk 0:00:03.3]} 64... Kxg5 {[%clk 0:00:20.8]}
65. c6 {[%clk 0:00:03.5]} 65... h3 {[%clk 0:00:18.4]} 66. c7 {[%clk 0:00:03.5]}
66... h2 {[%clk 0:00:19]} 67. c8=Q {[%clk 0:00:03]} 67... h1=Q {[%clk
0:00:19.9]} 68. Qg8+ {[%clk 0:00:02.9]} 68... Kf4 {[%clk 0:00:19.9]} 69. Qf7+
{[%clk 0:00:02.6]} 69... Ke3 {[%clk 0:00:20.2]} 70. Qe6+ {[%clk 0:00:03]} 70...
Kf2 {[%clk 0:00:20.6]} 71. Qc4 {[%clk 0:00:03.1]} 71... Qb7+ {[%clk 0:00:19.5]}
72. Qb5 {[%clk 0:00:03.3]} 72... Qxb5+ {[%clk 0:00:19.3]} 73. Kxb5 {[%clk
0:00:03.5]} 1/2-1/2